lending/lending_fUSD_20241005
["ID","MTS","AMOUNT","RATE_DAILY","PERIOD"]
[339894314,1728147054438,-500.0,0.00038356,30]
[339894315,1728147054453,-151.0,0.00038356,7]
[339894316,1728147054469,-500.0,0.00038356,30]
[339894317,1728147054484,-500.0,0.00038356,30]
[339894318,1728147054500,-500.0,0.00038356,30]
[339894319,1728147054515,-500.0,0.00038356,30]
[339894320,1728147054531,-500.0,0.00038356,30]
[339894321,1728147054545,-948.43,0.00038356,30]
[339894322,1728147054560,-500.0,0.00038356,30]
[339894323,1728147054576,-500.0,0.00038356,30]
[339894324,1728147054590,-500.0,0.00038356,30]
[339894325,1728147054605,-533.94417624,0.00038356,30]
[339894326,1728147054620,-500.0,0.00038356,30]
[339894327,1728147054636,-500.0,0.00038356,30]
[339894328,1728147054650,-500.0,0.00038356,30]
[339894329,1728147054666,-500.0,0.00038356,30]
[339894330,1728147054686,-250.0,0.00038356,7]
[339894331,1728147054702,-151.0,0.00038356,7]
[339894332,1728147054719,-250.0,0.00038356,7]
[339894333,1728147054734,-648.23067625,0.00038356,30]
[339894334,1728147054749,-676.76,0.00038356,30]
[339894335,1728147054764,-151.0,0.00038356,7]
[339894336,1728147054780,-1066.49,0.00038356,30]
[339894337,1728147054795,-500.0,0.00038356,30]
[339894338,1728147054810,-1541.44,0.00038356,30]
[339894339,1728147054826,-500.0,0.00038356,30]
[339894340,1728147054841,-500.0,0.00038356,30]
[339894341,1728147054857,-1381.37,0.00038356,30]
[339894342,1728147054872,-500.0,0.00038356,30]
[339894343,1728147054887,-500.0,0.00038356,30]
[339894344,1728147054902,-500.0,0.00038356,30]
[339894345,1728147054917,-500.0,0.00038356,30]
[339894346,1728147054933,-250.0,0.00038356,7]
[339894347,1728147054947,-500.0,0.00038356,30]
[339894348,1728147054962,-250.0,0.00038356,7]
[339894349,1728147054978,-500.0,0.00038356,30]
[339894350,1728147054992,-500.0,0.00038356,30]
[339894351,1728147055008,-500.0,0.00038356,30]
[339894352,1728147055024,-500.0,0.00038356,30]
[339894353,1728147055039,-500.0,0.00038356,30]
[339894354,1728147055055,-500.0,0.00038356,30]
[339894355,1728147055069,-500.0,0.00038356,30]
[339894356,1728147055085,-1117.39,0.00038356,30]
[339894357,1728147055100,-1320.61,0.00038356,30]
[339894358,1728147055114,-659.62,0.00038356,30]
[339894359,1728147055129,-500.0,0.00038356,30]
[339894360,1728147055144,-500.0,0.00038356,30]
[339894361,1728147055159,-500.0,0.00038356,30]
[339894362,1728147055174,-500.0,0.00038356,30]
[339894363,1728147055188,-500.0,0.00038356,30]
[339894364,1728147055205,-1392.32,0.00038356,30]
[339894365,1728147055219,-500.0,0.00038356,30]
[339894366,1728147055235,-542.19872413,0.00038356,30]
[339894367,1728147055250,-500.0,0.00038356,30]
[339894368,1728147055266,-500.0,0.00038356,30]
[339894369,1728147055281,-500.0,0.00038356,30]
[339894370,1728147055296,-500.0,0.00038356,30]
[339894371,1728147055310,-999.0,0.00038356,120]
[339894372,1728147055325,-500.0,0.00038356,30]
[339894373,1728147055340,-500.0,0.00038356,30]
[339894374,1728147055354,-500.0,0.00038356,30]
[339894375,1728147055369,-995.8,0.00038356,30]
[339894376,1728147055385,-1450.24,0.00038356,30]
[339894377,1728147055399,-2170.1,0.00038356,30]
[339894378,1728147055413,-500.0,0.00038356,30]
[339894379,1728147055428,-1452.19,0.00038356,30]
[339894380,1728147055443,-877.02,0.00038356,30]
[339894381,1728147055457,-500.0,0.00038356,30]
[339894382,1728147055472,-182.03,0.00038356,30]
[339894383,1728147055486,-500.0,0.00038356,30]
[339894384,1728147055503,-746.73,0.00038356,30]
[339894385,1728147055518,-1409.59,0.00038356,30]
[339894386,1728147055534,-679.22,0.00038356,30]
[339894387,1728147055548,-500.0,0.00038356,30]
[339894388,1728147055563,-1020.04,0.00038356,30]
[339894389,1728147055578,-500.80669886,0.00038356,30]
[339894390,1728147055592,-666.18,0.00038356,30]
[339894391,1728147055607,-569.48,0.00038356,30]
[339894392,1728147055621,-500.0,0.00038356,30]
[339894393,1728147055635,-500.0,0.00038356,30]
[339894394,1728147055650,-500.0,0.00038356,30]
[339894395,1728147055665,-1089.28,0.00038356,30]
[339894396,1728147055680,-980.44,0.00038356,30]
[339894397,1728147055696,-500.0,0.00038356,30]
[339894398,1728147055898,-568.81,0.00038356,30]
[339894399,1728147055910,-1673.25,0.00038356,30]
[339894400,1728147055919,-1354.9,0.00038356,30]
[339894401,1728147055929,-500.0,0.00038356,30]
[339894402,1728147055939,-1117.04,0.00038356,30]
[339894403,1728147055950,-3092.09,0.00038356,30]
[339894404,1728147055959,-500.0,0.00038356,30]
[339894405,1728147055969,-500.0,0.00038356,30]
[339894406,1728147055978,-500.0,0.00038356,30]
[339894407,1728147055987,-500.0,0.00038356,30]
[339894408,1728147055997,-539.86935878,0.00038356,30]
[339894409,1728147056007,-500.0,0.00038356,30]
[339894410,1728147056017,-500.0,0.00038356,30]
[339894411,1728147056026,-1400.9,0.00038356,30]
[339894412,1728147056035,-521.3,0.00038356,30]
[339894413,1728147056044,-957.32,0.00038356,30]
[339894414,1728147056053,-500.0,0.00038356,30]
[339894415,1728147056062,-500.0,0.00038356,30]
[339894416,1728147056071,-500.0,0.00038356,30]
[339894417,1728147056081,-532.54,0.00038356,30]
[339894418,1728147056090,-500.0,0.00038356,30]
[339894419,1728147056100,-500.0,0.00038356,30]
[339894420,1728147056110,-151.0,0.00038356,7]
[339894421,1728147056119,-500.0,0.00038356,30]
[339894422,1728147056129,-151.0,0.00038356,7]
[339894423,1728147056138,-500.0,0.00038356,30]
[339894424,1728147056147,-613.27,0.00038356,30]
[339894425,1728147056157,-500.0,0.00038356,30]
[339894426,1728147056166,-500.0,0.00038356,30]
[339894427,1728147056175,-1461.62,0.00038356,30]
[339894428,1728147056185,-551.78,0.00038356,30]
[339894429,1728147056195,-815.17,0.00038356,30]
[339894430,1728147056204,-500.0,0.00038356,30]
[339894431,1728147056213,-151.0,0.00038356,7]
[339894432,1728147056222,-500.0,0.00038356,30]
[339894433,1728147056231,-227.01656,0.00038356,7]
[339894434,1728147056240,-500.0,0.00038356,30]
[339894435,1728147056249,-833.62,0.00038356,30]
[339894436,1728147056259,-500.0,0.00038356,30]
[339894437,1728147056268,-973.8,0.00038356,30]
[339894438,1728147056277,-500.0,0.00038356,30]
[339894439,1728147056286,-749.79,0.00038356,30]
[339894440,1728147056295,-500.0,0.00038356,30]
[339894441,1728147056304,-500.0,0.00038356,30]
[339894442,1728147056314,-500.0,0.00038356,30]
[339894443,1728147056326,-552.5,0.00038356,30]
[339894444,1728147056335,-500.0,0.00038356,30]
[339894445,1728147056344,-500.0,0.00038356,30]
[339894446,1728147056353,-500.0,0.00038356,30]
[339894447,1728147056363,-500.0,0.00038356,30]
[339894448,1728147056372,-500.0,0.00038356,30]
[339894449,1728147056381,-595.63,0.00038356,30]
[339894450,1728147056391,-500.0,0.00038356,30]
[339894451,1728147056401,-500.0,0.00038356,30]
[339894452,1728147056411,-500.0,0.00038356,30]
[339894453,1728147056420,-895.17,0.00038356,30]
[339894454,1728147056429,-538.69,0.00038356,30]
[339894455,1728147056439,-716.85,0.00038356,30]
[339894456,1728147056448,-500.0,0.00038356,30]
[339894457,1728147056458,-500.0,0.00038356,30]
[339894458,1728147056467,-500.0,0.00038356,30]
[339894459,1728147056477,-500.0,0.00038356,30]
[339894460,1728147056486,-500.0,0.00038356,30]
[339894461,1728147056495,-734.46,0.00038356,30]
[339894462,1728147056504,-500.0,0.00038356,30]
[339894463,1728147056514,-634.95392195,0.00038356,30]
[339894464,1728147056523,-500.0,0.00038356,30]
[339894465,1728147056532,-500.0,0.00038356,30]
[339894466,1728147056541,-744.23,0.00038356,30]
[339894467,1728147056550,-500.0,0.00038356,30]
[339894468,1728147056559,-500.0,0.00038356,30]
[339894469,1728147056569,-1043.16,0.00038356,30]
[339894470,1728147056578,-544.13,0.00038356,30]
[339894471,1728147056587,-500.0,0.00038356,30]
[339894472,1728147056596,-526.24,0.00038356,30]
[339894473,1728147056605,-837.39,0.00038356,30]
[339894474,1728147056614,-649.58,0.00038356,30]
[339894475,1728147056624,-500.0,0.00038356,30]
[339894476,1728147056633,-500.0,0.00038356,30]
[339894477,1728147056643,-500.0,0.00038356,30]
[339894478,1728147056652,-500.0,0.00038356,30]
[339894479,1728147056661,-1194.16,0.00038356,30]
[339894480,1728147056675,-500.0,0.00038356,30]
[339894481,1728147056683,-500.0,0.00038356,30]
[339894482,1728147056693,-500.0,0.00038356,30]
[339894483,1728147056710,-500.0,0.00038356,30]
[339894484,1728147056719,-510.48,0.00038356,30]
[339894485,1728147056728,-1245.75,0.00038356,30]
[339894486,1728147056737,-612.42,0.00038356,30]
[339894487,1728147056747,-500.0,0.00038356,30]
[339894488,1728147056756,-896.41,0.00038356,30]
[339894489,1728147056766,-500.0,0.00038356,30]
[339894490,1728147056774,-912.71,0.00038356,30]
[339894491,1728147056784,-570.6,0.00038356,30]
[339894492,1728147056793,-500.0,0.00038356,30]
[339894493,1728147056802,-500.0,0.00038356,30]
[339894494,1728147056814,-502.28754549,0.00038356,30]
[339894495,1728147056823,-935.17,0.00038356,30]
[339894496,1728147056832,-529.46383974,0.00038356,30]
[339894497,1728147056841,-500.0,0.00038356,30]
[339894498,1728147056850,-500.0,0.00038356,30]
[339894499,1728147056859,-1275.76,0.00038356,30]
[339894500,1728147056868,-500.0,0.00038356,30]
[339894501,1728147056878,-500.0,0.00038356,30]
[339894502,1728147056887,-500.0,0.00038356,30]
[339894503,1728147056896,-500.0,0.00038356,30]
[339894504,1728147056905,-500.18,0.00038356,30]
[339894505,1728147056915,-500.0,0.00038356,30]
[339894506,1728147056924,-500.0,0.00038356,30]
[339894507,1728147056934,-500.0,0.00038356,30]
[339894508,1728147056946,-1057.7,0.00038356,30]
[339894509,1728147056955,-712.54,0.00038356,30]
[339894510,1728147056964,-500.0,0.00038356,30]
[339894511,1728147056974,-713.19,0.00038356,30]
[339894512,1728147056983,-645.72,0.00038356,30]
[339894513,1728147056991,-749.26,0.00038356,30]
[339894514,1728147057001,-500.0,0.00038356,30]
[339894515,1728147057010,-500.0,0.00038356,30]
[339894516,1728147057020,-500.0,0.00038356,30]
[339894517,1728147057029,-500.0,0.00038356,30]
[339894518,1728147057038,-1037.04,0.00038356,30]
[339894519,1728147057047,-700.86,0.00038356,30]
[339894520,1728147057057,-688.31,0.00038356,30]
[339894521,1728147057066,-500.0,0.00038356,30]
[339894522,1728147057075,-997.54,0.00038356,30]
[339894523,1728147057084,-500.0,0.00038356,30]
[339894524,1728147057093,-534.2,0.00038356,30]
[339894525,1728147057102,-607.13,0.00038356,30]
[339894526,1728147057111,-500.0,0.00038356,30]
[339894527,1728147057121,-500.98,0.00038356,30]
[339894528,1728147057130,-500.0,0.00038356,30]
[339894529,1728147057139,-500.0,0.00038356,30]
[339894530,1728147057148,-542.57,0.00038356,30]
[339894531,1728147057157,-1204.65,0.00038356,30]
[339894532,1728147057166,-500.0,0.00038356,30]
[339894533,1728147057175,-539.24,0.00038356,30]
[339894534,1728147057184,-501.12541081,0.00038356,30]
[339894535,1728147057194,-500.0,0.00038356,30]
[339894536,1728147057203,-500.0,0.00038356,30]
[339894537,1728147057212,-500.0,0.00038356,30]
[339894538,1728147057221,-1294.2,0.00038356,30]
[339894539,1728147057230,-500.0,0.00038356,30]
[339894540,1728147057240,-500.0,0.00038356,30]
[339894541,1728147057249,-6114.95,0.00038356,30]
[339894542,1728147057259,-500.0,0.00038356,30]
[339894543,1728147057268,-610.97,0.00038356,30]
[339894544,1728147057277,-1197.02,0.00038356,30]
[339894545,1728147057286,-500.0,0.00038356,30]
[339894546,1728147057295,-801.24,0.00038356,30]
[339894547,1728147057304,-533.72,0.00038356,30]
[339894548,1728147057313,-500.0,0.00038356,30]
[339894549,1728147057322,-500.0,0.00038356,30]
[339894550,1728147057331,-973.61,0.00038356,30]
[339894551,1728147057340,-743.21,0.00038356,30]
[339894552,1728147057350,-1102.84,0.00038356,30]
[339894553,1728147057359,-500.0,0.00038356,30]
[339894554,1728147057368,-616.19,0.00038356,30]
[339894555,1728147057377,-500.0,0.00038356,30]
[339894556,1728147057386,-500.0,0.00038356,30]
[339894557,1728147057395,-500.0,0.00038356,30]
[339894558,1728147057404,-500.0,0.00038356,30]
[339894559,1728147057413,-500.0,0.00038356,30]
[339894560,1728147057423,-1463.87,0.00038356,30]
[339894561,1728147057432,-500.0,0.00038356,30]
[339894562,1728147057441,-603.49,0.00038356,30]
[339894563,1728147057450,-500.0,0.00038356,30]
[339894564,1728147057459,-500.0,0.00038356,30]
[339894565,1728147057468,-151.0,0.00038356,7]
[339894566,1728147057478,-151.0,0.00038356,7]
[339894567,1728147057487,-652.66,0.00038356,30]
[339894568,1728147057496,-151.0,0.00038356,7]
[339894569,1728147057505,-500.0,0.00038356,30]
[339894570,1728147057514,-500.0,0.00038356,30]
[339894571,1728147057523,-443.431309,0.00038356,7]
[339894572,1728147057532,-500.0,0.00038356,30]
[339894573,1728147057541,-300.669026,0.00038356,7]
[339894574,1728147057551,-443.431309,0.00038356,7]
[339894575,1728147057560,-857.16,0.00038356,30]
[339894576,1728147057568,-500.0,0.00038356,30]
[339894577,1728147057577,-500.0,0.00038356,30]
[339894578,1728147057587,-500.0,0.00038356,30]
[339894579,1728147057596,-500.0,0.00038356,30]
[339894580,1728147057605,-1257.63,0.00038356,30]
[339894581,1728147057615,-500.0,0.00038356,30]
[339894582,1728147057624,-500.0,0.00038356,30]
[339894583,1728147057633,-500.0,0.00038356,30]
[339894584,1728147057642,-500.0,0.00038356,30]
[339894585,1728147057652,-500.0,0.00038356,30]
[339894586,1728147057661,-500.0,0.00038356,30]
[339894587,1728147057671,-443.431309,0.00038356,7]
[339894588,1728147057680,-500.0,0.00038356,30]
[339894589,1728147057689,-730.24,0.00038356,30]
[339894590,1728147057698,-443.431309,0.00038356,7]
[339894591,1728147057708,-1523.37,0.00038356,30]
[339894592,1728147057717,-500.0,0.00038356,30]
[339894593,1728147057727,-847.59,0.00038356,30]
[339894594,1728147057736,-500.0,0.00038356,30]
[339894595,1728147057745,-500.0,0.00038356,30]
[339894596,1728147057755,-500.0,0.00038356,30]
[339894597,1728147057764,-500.0,0.00038356,30]
[339894598,1728147057773,-500.0,0.00038356,30]
[339894599,1728147057783,-500.0,0.00038356,30]
[339894600,1728147057792,-708.16,0.00038356,30]
[339894601,1728147057801,-500.0,0.00038356,30]
[339894602,1728147057810,-500.0,0.00038356,30]
[339894603,1728147057820,-500.0,0.00038356,30]
[339894604,1728147057829,-500.0,0.00038356,30]
[339894605,1728147057838,-505.61606935,0.00038356,30]
[339894606,1728147057847,-500.0,0.00038356,30]
[339894607,1728147057856,-500.0,0.00038356,30]
[339894608,1728147057866,-1110.69,0.00038356,30]
[339894609,1728147057875,-734.55,0.00038356,30]
[339894610,1728147057884,-500.0,0.00038356,21]
[339894611,1728147057895,-500.0,0.00038356,30]
[339894612,1728147057905,-500.0,0.00038356,30]
[339894613,1728147057914,-500.0,0.00038356,30]
[339894614,1728147058063,-1207.12,0.00038356,30]
[339894615,1728147058073,-500.0,0.00038356,30]
[339894616,1728147058083,-500.0,0.00038356,30]
[339894617,1728147058093,-621.54,0.00038356,30]
[339894618,1728147058102,-500.0,0.00038356,30]
[339894619,1728147058112,-500.0,0.00038356,30]
[339894620,1728147058121,-1418.21,0.00038356,30]
[339894621,1728147058133,-500.0,0.00038356,30]
[339894622,1728147058143,-500.0,0.00038356,30]
[339894623,1728147058152,-1713.6,0.00038356,30]
[339894624,1728147058161,-500.0,0.00038356,30]
[339894625,1728147058171,-500.0,0.00038356,30]
[339894626,1728147058181,-596.62,0.00038356,30]
[339894627,1728147058191,-500.0,0.00038356,120]
[339894628,1728147058200,-500.0,0.00038356,30]
[339894629,1728147058209,-1763.97,0.00038356,30]
[339894630,1728147058219,-500.0,0.00038356,30]
[339894631,1728147058228,-500.0,0.00038356,30]
[339894632,1728147058238,-500.0,0.00038356,30]
[339894633,1728147058247,-500.0,0.00038356,30]
[339894634,1728147058256,-520.32,0.00038356,30]
[339894635,1728147058266,-354.0555869,0.00038356,30]
[339894636,1728147058275,-500.0,0.00038356,30]
[339894637,1728147058285,-500.0,0.00038356,2]
[339894638,1728147058294,-500.0,0.00038356,30]
[339894639,1728147058304,-1374.93,0.00038356,30]
[339894640,1728147058313,-500.0,0.00038356,30]
[339894641,1728147058326,-533.04868333,0.00038356,30]
[339894642,1728147058335,-814.88,0.00038356,30]
[339894643,1728147058344,-828.2,0.00038356,30]
[339894644,1728147058354,-500.0,0.00038356,30]
[339894645,1728147058364,-500.0,0.00038356,30]
[339894646,1728147058373,-1238.46,0.00038356,30]
[339894647,1728147058382,-500.0,0.00038356,30]
[339894648,1728147058393,-500.0,0.00038356,30]
[339894649,1728147058402,-500.0,0.00038356,30]
[339894650,1728147058411,-500.0,0.00038356,30]
[339894651,1728147058420,-500.0,0.00038356,30]
[339894652,1728147058429,-500.0,0.00038356,30]
[339894653,1728147058438,-904.62,0.00038356,30]
[339894654,1728147058448,-1342.248124,0.00038356,7]
[339894655,1728147058457,-1342.248124,0.00038356,7]
[339894656,1728147058466,-500.0,0.00038356,30]
[339894657,1728147058475,-500.0,0.00038356,30]
[339894658,1728147058485,-300.0,0.00038356,30]
[339894659,1728147058494,-1015.81,0.00038356,30]
[339894660,1728147058503,-629.14,0.00038356,30]
[339894661,1728147058514,-500.0,0.00038356,30]
[339894662,1728147058525,-500.0,0.00038356,30]
[339894663,1728147058534,-934.77,0.00038356,30]
[339894664,1728147058543,-500.0,0.00038356,7]
[339894665,1728147058553,-500.0,0.00038356,30]
[339894666,1728147058562,-500.0,0.00038356,30]
[339894667,1728147058571,-1120.82,0.00038356,30]
[339894668,1728147058579,-790.26,0.00038356,30]
[339894669,1728147058589,-500.0,0.00038356,30]
[339894670,1728147058598,-803.58,0.00038356,30]
[339894671,1728147058607,-1342.248124,0.00038356,7]
[339894672,1728147058616,-1342.248124,0.00038356,7]
[339894673,1728147058626,-500.0,0.00038356,2]
[339894674,1728147058635,-617.73,0.00038356,30]
[339894675,1728147058644,-500.0,0.00038356,30]
[339894676,1728147058654,-500.0,0.00038356,30]
[339894677,1728147058663,-500.0,0.00038356,30]
[339894678,1728147058672,-306.90470572,0.00038356,30]
[339894679,1728147058682,-500.0,0.00038356,30]
[339894680,1728147058691,-500.0,0.00038356,30]
[339894681,1728147058700,-1440.54,0.00038356,30]
[339894682,1728147058709,-816.66,0.00038356,30]
[339894683,1728147058719,-500.0,0.00038356,2]
[339894684,1728147058728,-500.0,0.00038356,30]
[339894685,1728147058737,-1168.27,0.00038356,30]
[339894686,1728147058746,-500.0,0.00038356,30]
[339894687,1728147058756,-510.22358531,0.00038356,30]
[339894688,1728147058765,-500.0,0.00038356,30]
[339894689,1728147058774,-684.57,0.00038356,30]
[339894690,1728147058783,-500.0,0.00038356,30]
[339894691,1728147058792,-500.0,0.00038356,30]
[339894692,1728147058802,-500.0,0.00038356,30]
[339894693,1728147058812,-1163.33,0.00038356,30]
[339894694,1728147058821,-790.06,0.00038356,30]
[339894695,1728147058830,-886.94,0.00038356,30]
[339894696,1728147058840,-500.0,0.00038356,30]
[339894697,1728147058849,-1108.4,0.00038356,30]
[339894698,1728147058859,-500.0,0.00038356,30]
[339894699,1728147058868,-1783.85,0.00038356,30]
[339894700,1728147058877,-500.0,0.00038356,30]
[339894701,1728147058887,-642.89,0.00038356,30]
[339894702,1728147058896,-398.42,0.00038367,2]
[339894703,1728147058905,-150.0,0.00038422,120]
[339894704,1728147058914,-1000.0,0.000385,15]
[339894705,1728147058923,-200.0,0.00038502,2]
[339894706,1728147058932,-152.0,0.00038549,6]
[339894707,1728147058941,-950.9949,0.00038599,2]
[339894708,1728147058950,-1000.92863589,0.000387,120]
[339894709,1728147058959,-7032.91711469,0.00038736,2]
[339894710,1728147058968,-150.0,0.00038763,120]
[339894711,1728147058977,-570.75,0.00038766,30]
[339894712,1728147058987,-570.75,0.00038766,30]
[339894713,1728147058995,-570.75,0.00038766,30]
[339894714,1728147059004,-668.66,0.00038767,30]
[339894715,1728147059013,-1684.72,0.00038767,30]
[339894716,1728147059023,-506.57301861,0.00038767,30]
[339894717,1728147059032,-506.40825994,0.00038767,30]
[339894718,1728147059041,-500.0,0.00038767,30]
[339894719,1728147059050,-500.0,0.00038767,30]
[339894720,1728147059059,-435.94138599,0.00038767,30]
[339894721,1728147059068,-312.37639676,0.00038767,30]
[339894722,1728147059077,-500.0,0.00038767,30]
[339894723,1728147059086,-500.0,0.00038767,30]
[339894724,1728147059095,-500.0,0.00038767,30]
[339894725,1728147059104,-500.0,0.00038767,30]
[339894726,1728147059113,-500.0,0.00038767,30]
[339894727,1728147059122,-500.0,0.00038767,16]
[339894728,1728147059131,-500.0,0.00038767,30]
[339894729,1728147059140,-500.0,0.00038767,30]
[339894730,1728147059150,-500.0,0.00038767,30]
[339894731,1728147059159,-500.0,0.00038767,30]
[339894732,1728147059168,-500.0,0.00038767,30]
[339894733,1728147059177,-500.0,0.00038767,30]
[339894734,1728147059186,-500.0,0.00038767,30]
[339894735,1728147059196,-500.0,0.00038767,30]
[339894736,1728147059205,-500.0,0.00038767,30]
[339894737,1728147059214,-500.0,0.00038767,30]
[339894738,1728147059224,-510.36120506,0.00038767,30]
[339894739,1728147059233,-500.0,0.00038767,30]
[339894740,1728147059242,-503.6250407,0.00038767,30]
[339894741,1728147059250,-500.0,0.00038767,30]
[339894742,1728147059258,-500.0,0.00038767,30]
[339894743,1728147059268,-500.0,0.00038767,30]
[339894744,1728147059277,-500.0,0.00038767,30]
[339894745,1728147059286,-500.0,0.00038767,30]
[339894746,1728147059296,-500.0,0.00038767,30]
[339894747,1728147059305,-500.0,0.00038767,30]
[339894748,1728147059314,-500.0,0.00038767,30]
[339894749,1728147059323,-500.0,0.00038767,30]
[339894750,1728147059332,-500.0,0.00038767,30]
[339894751,1728147059341,-500.0,0.00038767,30]
[339894752,1728147059351,-500.0,0.00038767,30]
[339894753,1728147059360,-500.0,0.00038767,30]
[339894754,1728147059369,-554.8127855,0.00038767,30]
[339894755,1728147059379,-611.37480397,0.00038767,30]
[339894756,1728147059389,-500.0,0.00038767,30]
[339894757,1728147059398,-500.0,0.00038767,30]
[339894758,1728147059408,-150.0,0.00038767,30]
[339894759,1728147059417,-500.0,0.00038767,30]
[339894760,1728147059427,-500.0,0.00038767,30]
[339894761,1728147059436,-500.0,0.00038767,30]
[339894762,1728147059446,-1155.52,0.00038767,30]
[339894763,1728147059455,-500.0,0.00038767,30]
[339894764,1728147059465,-1004.11,0.00038767,30]
[339894765,1728147059474,-869.62,0.00038767,30]
[339894766,1728147059483,-500.0,0.00038767,30]
[339894767,1728147059492,-500.0,0.00038767,30]
[339894768,1728147059501,-500.0,0.00038767,30]
[339894769,1728147059510,-500.0,0.00038767,30]
[339894770,1728147059519,-577.41,0.00038767,30]
[339894771,1728147059528,-500.0,0.00038767,30]
[339894772,1728147059537,-1420.73,0.00038767,30]
[339894773,1728147059547,-500.0,0.00038767,30]
[339894774,1728147059555,-547.3,0.00038767,30]
[339894775,1728147059564,-500.0,0.00038767,30]
[339894776,1728147059574,-500.0,0.00038767,30]
[339894777,1728147059583,-548.25,0.00038767,30]
[339894778,1728147059594,-500.0,0.00038767,30]
[339894779,1728147059603,-500.0,0.00038767,30]
[339894780,1728147059612,-500.0,0.00038767,30]
[339894781,1728147059621,-634.58,0.00038767,30]
[339894782,1728147059630,-500.0,0.00038767,30]
[339894783,1728147059639,-500.0,0.00038767,30]
[339894784,1728147059650,-593.12,0.00038767,30]
[339894785,1728147059659,-500.0,0.00038767,30]
[339894786,1728147059668,-500.0,0.00038767,30]
[339894787,1728147059677,-529.51,0.00038767,30]
[339894788,1728147059686,-1227.07,0.00038767,30]
[339894789,1728147059695,-500.0,0.00038767,30]
[339894790,1728147059705,-518.44,0.00038767,30]
[339894791,1728147059714,-500.0,0.00038767,30]
[339894792,1728147059723,-907.64,0.00038767,30]
[339894793,1728147059732,-500.0,0.00038767,30]
[339894794,1728147059741,-500.0,0.00038767,30]
[339894795,1728147059750,-500.0,0.00038767,30]
[339894796,1728147059759,-500.0,0.00038767,30]
[339894797,1728147059768,-500.0,0.00038767,30]
[339894798,1728147059778,-500.0,0.00038767,30]
[339894799,1728147059787,-500.0,0.00038767,30]
[339894800,1728147059796,-500.0,0.00038767,30]
[339894801,1728147059804,-500.0,0.00038767,30]
[339894802,1728147059813,-500.0,0.00038767,30]
[339894803,1728147059822,-500.0,0.00038767,30]
[339894804,1728147059832,-500.0,0.00038767,30]
[339894805,1728147059841,-500.0,0.00038767,30]
[339894806,1728147059850,-597.48,0.00038767,30]
[339894807,1728147059859,-500.0,0.00038767,30]
[339894808,1728147059868,-500.0,0.00038767,30]
[339894809,1728147059878,-500.0,0.00038767,30]
[339894810,1728147059887,-500.0,0.00038767,30]
[339894811,1728147059895,-500.0,0.00038767,30]
[339894812,1728147059904,-780.76,0.00038767,30]
[339894813,1728147059913,-500.0,0.00038767,30]